[Event "MCR rapid mládeže 2023 U16"]
[Site "Harachov, Czech Republic"]
[Date "2023.09.10"]
[Round "8.9"]
[White "Horkova, Tereza"]
[Black "Slivova, Linda"]
[Result "0-1"]
[TimeControl "20min+5s/move"]
[WhiteElo "1720"]
[BlackElo "1386"]

1. e4 {[%clk 00:20:09]} {[%emt 00:14:08]} d5 {[%clk 00:20:09]} {[%emt
00:00:02]} 2. exd5 {[%clk 00:20:13]} {[%emt 00:00:02]} Qxd5 {[%clk 00:20:12]}
{[%emt 00:00:01]} 3. Nc3 {[%clk 00:20:12]} {[%emt 00:00:06]} Qd6 {[%clk
00:20:16]} {[%emt 00:00:01]} 4. d4 {[%clk 00:20:12]} {[%emt 00:00:04]} Nf6
{[%clk 00:20:19]} {[%emt 00:00:02]} 5. Nf3 {[%clk 00:20:03]} {[%emt 00:00:14]}
c6 {[%clk 00:20:22]} {[%emt 00:00:02]} 6. g3 {[%clk 00:20:01]} {[%emt
00:00:07]} Bg4 {[%clk 00:20:07]} {[%emt 00:00:20]} 7. Bg2 {[%clk 00:20:01]}
{[%emt 00:00:04]} e6 {[%clk 00:19:57]} {[%emt 00:00:15]} 8. Bf4 {[%clk
00:19:13]} {[%emt 00:00:53]} Qb4 {[%clk 00:19:58]} {[%emt 00:00:04]} 9. Rb1
{[%clk 00:16:00]} {[%emt 00:03:18]} Nd5 {[%clk 00:18:16]} {[%emt 00:01:48]} 10.
Qd2 {[%clk 00:12:42]} {[%emt 00:03:23]} Qa5 {[%clk 00:14:41]} {[%emt 00:03:40]}
11. Nxd5 {[%clk 00:12:02]} {[%emt 00:00:44]} Qxd5 {[%clk 00:13:47]} {[%emt
00:01:00]} 12. Nh4 {[%clk 00:07:43]} {[%emt 00:04:23]} Qd8 {[%clk 00:11:32]}
{[%emt 00:02:15]} 13. O-O {[%clk 00:07:23]} {[%emt 00:00:25]} Be7 {[%clk
00:11:23]} {[%emt 00:00:19]} 14. Nf3 {[%clk 00:07:20]} {[%emt 00:00:09]} Nd7
{[%clk 00:10:58]} {[%emt 00:00:30]} 15. Rfe1 {[%clk 00:07:15]} {[%emt
00:00:09]} O-O {[%clk 00:10:57]} {[%emt 00:00:05]} 16. Ne5 {[%clk 00:06:23]}
{[%emt 00:00:58]} Nxe5 {[%clk 00:10:48]} {[%emt 00:00:14]} 17. dxe5 {[%clk
00:05:41]} {[%emt 00:00:48]} Qxd2 {[%clk 00:10:32]} {[%emt 00:00:20]} 18. Bxd2
{[%clk 00:05:45]} {[%emt 00:00:02]} Rfd8 {[%clk 00:10:28]} {[%emt 00:00:09]} 19.
Bc3 {[%clk 00:05:22]} {[%emt 00:00:29]} Rd7 {[%clk 00:09:31]} {[%emt 00:01:02]}
20. h3 {[%clk 00:04:17]} {[%emt 00:01:10]} Bf5 {[%clk 00:09:09]} {[%emt
00:00:27]} 21. Rbc1 {[%clk 00:03:52]} {[%emt 00:00:30]} Rad8 {[%clk 00:08:39]}
{[%emt 00:00:35]} 22. Kh2 {[%clk 00:03:47]} {[%emt 00:00:10]} Bc5 {[%clk
00:07:26]} {[%emt 00:01:18]} 23. Kg1 {[%clk 00:01:45]} {[%emt 00:02:07]} Bd4
{[%clk 00:06:59]} {[%emt 00:00:31]} 24. Ba5 {[%clk 00:00:46]} {[%emt 00:01:05]}
b6 {[%clk 00:06:28]} {[%emt 00:00:36]} 25. Bb4 {[%clk 00:00:23]} {[%emt
00:00:27]} Bxb2 {[%clk 00:03:59]} {[%emt 00:02:34]} 26. Rb1 {[%clk 00:00:14]}
{[%emt 00:00:14]} Bd4 {[%clk 00:04:00]} {[%emt 00:00:04]} 27. Bxc6 {[%clk
00:00:08]} {[%emt 00:00:11]} Rc7 {[%clk 00:03:39]} {[%emt 00:00:26]} 28. Be4
{[%clk 00:00:08]} {[%emt 00:00:04]} Bxe4 {[%emt 00:00:46]} 29. Rxe4 {[%emt
00:00:02]} Rxc2 {[%clk 00:02:55]} {[%emt 00:00:06]} 30. Be1 {[%clk 00:00:08]}
{[%emt 00:00:10]} Rxa2 {[%clk 00:02:18]} {[%emt 00:00:42]} 31. Kf1 {[%clk
00:00:09]} {[%emt 00:00:04]} Bc5 {[%clk 00:02:04]} {[%emt 00:00:19]} 32. Re2
{[%clk 00:00:10]} {[%emt 00:00:04]} Rxe2 33. Kxe2 {[%clk 00:00:13]} Rd5 {[%clk
00:01:55]} {[%emt 00:00:12]} 34. f4 {[%clk 00:00:15]} {[%emt 00:00:03]} Kf8
{[%clk 00:01:50]} {[%emt 00:00:10]} 35. Ra1 {[%clk 00:00:12]} {[%emt 00:00:08]}
Rd7 {[%clk 00:01:43]} {[%emt 00:00:12]} 36. Ra6 {[%clk 00:00:12]} {[%emt
00:00:05]} b5 {[%clk 00:01:28]} {[%emt 00:00:20]} 37. Ra5 {[%clk 00:00:13]}
{[%emt 00:00:04]} Rb7 {[%clk 00:01:04]} {[%emt 00:00:29]} 38. Kd3 {[%clk
00:00:17]} Ke7 {[%clk 00:00:53]} {[%emt 00:00:15]} 39. Kc2 {[%clk 00:00:15]}
{[%emt 00:00:07]} Kd7 {[%clk 00:00:47]} {[%emt 00:00:11]} 40. Kb3 {[%clk
00:00:19]} Kc6 {[%clk 00:00:45]} {[%emt 00:00:07]} 41. Ra1 {[%clk 00:00:12]}
{[%emt 00:00:11]} Rd7 {[%clk 00:00:31]} {[%emt 00:00:21]} 42. Kc2 {[%clk
00:00:10]} {[%emt 00:00:07]} Kb6 {[%clk 00:00:34]} {[%emt 00:00:02]} 43. Ba5+
{[%clk 00:00:11]} {[%emt 00:00:03]} Kb7 {[%clk 00:00:35]} {[%emt 00:00:04]} 44.
Bc3 {[%clk 00:00:14]} {[%emt 00:00:02]} a6 {[%clk 00:00:35]} {[%emt 00:00:06]}
45. Rb1 {[%clk 00:00:15]} {[%emt 00:00:05]} Bf2 {[%clk 00:00:31]} {[%emt
00:00:08]} 46. g4 {[%clk 00:00:17]} {[%emt 00:00:03]} Bg3 {[%clk 00:00:32]}
{[%emt 00:00:04]} 47. Bd2 {[%clk 00:00:19]} {[%emt 00:00:02]} Rd4 {[%clk
00:00:32]} {[%emt 00:00:05]} 48. Rf1 {[%clk 00:00:21]} {[%emt 00:00:03]} h6
{[%clk 00:00:13]} {[%emt 00:00:25]} 49. Rf3 {[%clk 00:00:24]} {[%emt 00:00:02]}
Bh4 {[%clk 00:00:17]} {[%emt 00:00:01]} 50. g5 {[%clk 00:00:10]} {[%emt
00:00:18]} hxg5 {[%clk 00:00:19]} {[%emt 00:00:03]} 51. fxg5 {[%clk 00:00:15]}
{[%emt 00:00:01]} Rc4+ {[%clk 00:00:10]} {[%emt 00:00:15]} 52. Kd3 {[%clk
00:00:16]} {[%emt 00:00:03]} Rc7 {[%clk 00:00:08]} {[%emt 00:00:07]} 53. Ba5
{[%clk 00:00:18]} {[%emt 00:00:03]} Rd7+ {[%clk 00:00:11]} {[%emt 00:00:02]} 54.
Ke4 {[%clk 00:00:15]} {[%emt 00:00:05]} Bxg5 {[%clk 00:00:15]} {[%emt
00:00:03]} 55. Rg3 {[%clk 00:00:16]} {[%emt 00:00:04]} Bh6 {[%clk 00:00:19]}
{[%emt 00:00:01]} 56. Bb4 {[%clk 00:00:19]} {[%emt 00:00:02]} Kc6 {[%clk
00:00:18]} {[%emt 00:00:05]} 57. Rc3+ {[%clk 00:00:22]} {[%emt 00:00:02]} Kb7
{[%clk 00:00:22]} {[%emt 00:00:01]} 58. Rg3 {[%clk 00:00:22]} {[%emt 00:00:04]}
Rd5 {[%clk 00:00:24]} {[%emt 00:00:03]} 59. Rf3 {[%clk 00:00:25]} {[%emt
00:00:02]} Rd7 {[%clk 00:00:28]} {[%emt 00:00:02]} 60. Rg3 {[%clk 00:00:27]}
{[%emt 00:00:03]} f6 {[%clk 00:00:30]} {[%emt 00:00:03]} 61. exf6 {[%clk
00:00:20]} {[%emt 00:00:12]} gxf6 {[%clk 00:00:34]} {[%emt 00:00:01]} 62. Rg6
{[%clk 00:00:19]} {[%emt 00:00:07]} Bg5 {[%clk 00:00:37]} {[%emt 00:00:01]} 63.
Rg8 {[%clk 00:00:21]} {[%emt 00:00:03]} Rh7 {[%emt 00:00:13]} 64. Kd4 {[%clk
00:00:13]} {[%emt 00:00:05]} Rh4+ {[%clk 00:00:32]} {[%emt 00:00:10]} 65. Kc3
{[%emt 00:00:12]} Rc4+ {[%clk 00:00:36]} 66. Kb3 {[%clk 00:00:10]} {[%emt
00:00:01]} Rh4 {[%clk 00:00:24]} {[%emt 00:00:17]} 67. Rg7+ {[%clk 00:00:12]}
{[%emt 00:00:03]} Kb6 {[%clk 00:00:22]} {[%emt 00:00:08]} 68. Rd7 {[%clk
00:00:12]} {[%emt 00:00:04]} Rxh3+ {[%clk 00:00:24]} {[%emt 00:00:03]} 69. Kb2
{[%clk 00:00:15]} {[%emt 00:00:02]} Rh2+ {[%clk 00:00:23]} {[%emt 00:00:06]} 70.
Kb3 {[%clk 00:00:19]} Bf4 {[%clk 00:00:20]} {[%emt 00:00:08]} 71. Re7 {[%clk
00:00:20]} {[%emt 00:00:03]} e5 {[%clk 00:00:23]} {[%emt 00:00:03]} 72. Re6+
{[%clk 00:00:24]} {[%emt 00:00:01]} Kb7 {[%clk 00:00:25]} {[%emt 00:00:03]} 73.
Re7+ {[%clk 00:00:28]} Kc6 {[%clk 00:00:14]} {[%emt 00:00:16]} 74. Re6+ {[%clk
00:00:31]} {[%emt 00:00:01]} Kd5 {[%clk 00:00:18]} 75. Rxf6 {[%clk 00:00:31]}
{[%emt 00:00:06]} Rh3+ {[%clk 00:00:17]} {[%emt 00:00:07]} 76. Kb2 {[%clk
00:00:33]} {[%emt 00:00:02]} Rh6 {[%clk 00:00:18]} {[%emt 00:00:04]} 77. Rf8
{[%clk 00:00:32]} {[%emt 00:00:06]} Kc4 {[%clk 00:00:14]} {[%emt 00:00:10]} 78.
Be1 {[%clk 00:00:27]} {[%emt 00:00:09]} Kd3 {[%clk 00:00:15]} {[%emt 00:00:05]}
79. Rc8 {[%clk 00:00:25]} {[%emt 00:00:07]} e4 {[%clk 00:00:13]} {[%emt
00:00:07]} 80. Ba5 {[%clk 00:00:17]} {[%emt 00:00:14]} e3 {[%clk 00:00:11]}
{[%emt 00:00:07]} 81. Rc3+ {[%clk 00:00:20]} {[%emt 00:00:01]} Ke4 {[%clk
00:00:13]} {[%emt 00:00:03]} 82. Rc8 {[%clk 00:00:16]} {[%emt 00:00:09]} Kf3
{[%clk 00:00:16]} {[%emt 00:00:02]} 83. Kc2 {[%clk 00:00:10]} {[%emt 00:00:11]}
Rd6 {[%clk 00:00:18]} {[%emt 00:00:02]} 84. Rf8 {[%clk 00:00:10]} {[%emt
00:00:06]} e2 {[%clk 00:00:13]} {[%emt 00:00:10]} 85. Kb3 {[%clk 00:00:07]}
{[%emt 00:00:08]} Rd1 {[%clk 00:00:10]} {[%emt 00:00:08]} 86. Kc2 {[%clk
00:00:07]} {[%emt 00:00:05]} e1=Q {[%clk 00:00:13]} {[%emt 00:00:02]} 87. Bxe1
{[%clk 00:00:10]} {[%emt 00:00:02]} Rxe1 {[%clk 00:00:17]} {[%emt 00:00:01]} 88.
Kb3 {[%clk 00:00:13]} {[%emt 00:00:02]} Re4 {[%clk 00:00:20]} {[%emt 00:00:01]}
89. Rf6 {[%clk 00:00:16]} {[%emt 00:00:02]} a5 {[%clk 00:00:22]} {[%emt
00:00:04]} 90. Rf5 {[%clk 00:00:19]} {[%emt 00:00:02]} Re5 {[%clk 00:00:27]} 91.
Rf6 {[%clk 00:00:22]} {[%emt 00:00:02]} Ke3 {[%clk 00:00:23]} {[%emt 00:00:08]}
92. Ra6 {[%clk 00:00:25]} {[%emt 00:00:02]} a4+ {[%clk 00:00:26]} {[%emt
00:00:02]} 93. Kb4 {[%clk 00:00:28]} {[%emt 00:00:01]} Kd3 {[%clk 00:00:15]}
{[%emt 00:00:17]} 94. Rc6 {[%clk 00:00:30]} {[%emt 00:00:01]} Bd2+ {[%clk
00:00:18]} {[%emt 00:00:03]} 95. Ka3 {[%clk 00:00:35]} Re4 {[%clk 00:00:07]}
{[%emt 00:00:16]} 96. Rc5 {[%clk 00:00:34]} {[%emt 00:00:06]} Bb4+ {[%clk
00:00:11]} {[%emt 00:00:01]} 97. Kb2 {[%clk 00:00:37]} {[%emt 00:00:02]} Bxc5
{[%clk 00:00:15]} {[%emt 00:00:01]} 98. Kb1 {[%clk 00:00:42]} a3 {[%clk
00:00:17]} {[%emt 00:00:03]} 99. Ka2 {[%clk 00:00:46]} Re2+ {[%clk 00:00:18]}
{[%emt 00:00:04]} 100. Kb3 {[%clk 00:00:51]} Re4 {[%clk 00:00:16]} {[%emt
00:00:06]} 101. Ka2 {[%clk 00:00:55]} b4 {[%clk 00:00:18]} {[%emt 00:00:04]}
102. Kb1 {[%clk 00:00:59]} b3 {[%clk 00:00:18]} {[%emt 00:00:06]} 103. Kc1
{[%clk 00:01:03]} Re1# {[%clk 00:00:22]} 0-1

[Event "MCR rapid mládeže 2023 U16"]
[Site "Harachov, Czech Republic"]
[Date "2023.09.10"]
[Round "8.10"]
[White "Barteckova, Valerie"]
[Black "Nguyen, Nhat Minh Thu"]
[Result "1-0"]
[TimeControl "20min+5s/move"]
[WhiteElo "1498"]
[BlackElo "1405"]

1. d4 {[%clk 00:20:08]} {[%emt 00:00:02]} d5 {[%clk 00:20:09]} {[%emt
00:00:01]} 2. Nf3 {[%clk 00:20:12]} {[%emt 00:00:01]} Bf5 {[%clk 00:20:08]}
{[%emt 00:00:06]} 3. Bf4 {[%clk 00:20:04]} {[%emt 00:00:13]} Nf6 {[%clk
00:19:58]} {[%emt 00:00:16]} 4. e3 {[%clk 00:20:05]} {[%emt 00:00:04]} e6
{[%clk 00:19:52]} {[%emt 00:00:11]} 5. Bd3 {[%clk 00:19:52]} {[%emt 00:00:17]}
Bg4 {[%clk 00:18:57]} {[%emt 00:01:01]} 6. h3 {[%clk 00:19:48]} {[%emt
00:00:09]} Bxf3 {[%clk 00:18:56]} {[%emt 00:00:05]} 7. Qxf3 {[%clk 00:19:49]}
{[%emt 00:00:03]} h6 {[%clk 00:18:46]} {[%emt 00:00:16]} 8. c3 {[%clk
00:19:48]} {[%emt 00:00:06]} Be7 {[%clk 00:18:38]} {[%emt 00:00:13]} 9. Nd2
{[%clk 00:19:51]} {[%emt 00:00:02]} c5 {[%clk 00:18:07]} {[%emt 00:00:36]} 10.
O-O {[%clk 00:19:24]} {[%emt 00:00:32]} Nc6 {[%clk 00:17:53]} {[%emt 00:00:19]}
11. Qe2 {[%clk 00:18:43]} {[%emt 00:00:46]} O-O {[%clk 00:17:33]} {[%emt
00:00:25]} 12. dxc5 {[%clk 00:18:36]} {[%emt 00:00:12]} Bxc5 {[%clk 00:17:26]}
{[%emt 00:00:12]} 13. e4 {[%clk 00:18:35]} {[%emt 00:00:07]} e5 {[%clk
00:12:35]} {[%emt 00:04:56]} 14. exd5 {[%clk 00:15:22]} {[%emt 00:03:18]} exf4
{[%clk 00:10:33]} {[%emt 00:02:07]} 15. dxc6 {[%clk 00:15:20]} {[%emt
00:00:06]} bxc6 {[%clk 00:10:31]} {[%emt 00:00:08]} 16. Qf3 {[%clk 00:15:00]}
{[%emt 00:00:16]} Rc8 {[%clk 00:07:42]} {[%emt 00:03:03]} 17. Ne4 {[%clk
00:13:55]} {[%emt 00:01:10]} Bd6 {[%clk 00:06:54]} {[%emt 00:00:54]} 18. Rad1
{[%clk 00:13:22]} {[%emt 00:00:37]} Nxe4 {[%clk 00:04:10]} {[%emt 00:02:49]} 19.
Qxe4 {[%clk 00:12:48]} {[%emt 00:00:39]} g6 {[%clk 00:04:01]} {[%emt 00:00:15]}
20. Bc4 {[%clk 00:11:19]} {[%emt 00:01:34]} Qf6 {[%clk 00:03:44]} {[%emt
00:00:21]} 21. Rfe1 {[%clk 00:08:00]} {[%emt 00:03:25]} Rfd8 {[%clk 00:01:50]}
{[%emt 00:01:59]} 22. Bb3 {[%clk 00:06:48]} {[%emt 00:01:16]} Rd7 {[%clk
00:01:18]} {[%emt 00:00:37]} 23. Qd4 {[%clk 00:06:12]} {[%emt 00:00:35]} Qxd4
{[%clk 00:01:21]} {[%emt 00:00:09]} 24. Rxd4 {[%clk 00:06:13]} {[%emt
00:00:04]} Rdd8 {[%clk 00:00:36]} {[%emt 00:00:49]} 25. Red1 {[%clk 00:05:27]}
{[%emt 00:00:51]} Bc7 {[%clk 00:00:37]} {[%emt 00:00:06]} 26. Rd7 {[%clk
00:05:11]} {[%emt 00:00:15]} Rf8 {[%clk 00:00:23]} {[%emt 00:00:25]} 27. Re1
{[%clk 00:03:53]} {[%emt 00:01:23]} Bb6 {[%clk 00:00:10]} {[%emt 00:00:18]} 28.
Ree7 {[%clk 00:03:49]} {[%emt 00:00:07]} Rfd8 {[%clk 00:00:07]} {[%emt
00:00:10]} 29. Rxf7 {[%clk 00:03:26]} {[%emt 00:00:27]} Rxd7 {[%clk 00:00:11]}
{[%emt 00:00:02]} 30. Rxd7+ {[%clk 00:03:30]} {[%emt 00:00:01]} Kf8 {[%clk
00:00:15]} 31. Rf7+ {[%clk 00:03:24]} {[%emt 00:00:08]} Ke8 {[%clk 00:00:18]}
{[%emt 00:00:05]} 32. Rxf4 {[%clk 00:03:24]} {[%emt 00:00:04]} Rd8 {[%clk
00:00:21]} {[%emt 00:00:02]} 33. Re4+ {[%clk 00:03:26]} {[%emt 00:00:02]} Kf8
{[%clk 00:00:23]} {[%emt 00:00:03]} 34. Re2 {[%clk 00:03:23]} {[%emt 00:00:07]}
c5 {[%clk 00:00:24]} {[%emt 00:00:07]} 35. Kf1 {[%clk 00:03:24]} {[%emt
00:00:02]} a6 {[%clk 00:00:25]} {[%emt 00:00:06]} 36. Re6 {[%clk 00:03:04]}
{[%emt 00:00:20]} Bc7 {[%clk 00:00:13]} {[%emt 00:00:22]} 37. Ke2 {[%clk
00:03:02]} {[%emt 00:00:04]} Re8 {[%clk 00:00:17]} {[%emt 00:00:04]} 38. Rxe8+
{[%clk 00:03:04]} {[%emt 00:00:03]} Kxe8 {[%clk 00:00:22]} 39. Kd3 {[%clk
00:03:07]} {[%emt 00:00:02]} Ke7 {[%clk 00:00:24]} {[%emt 00:00:03]} 40. Ke4
{[%clk 00:03:02]} {[%emt 00:00:10]} Bb6 {[%clk 00:00:26]} {[%emt 00:00:04]} 41.
Kd5 {[%clk 00:02:59]} {[%emt 00:00:03]} Kd7 {[%clk 00:00:30]} {[%emt 00:00:05]}
42. Ba4+ {[%clk 00:03:03]} {[%emt 00:00:01]} Kc7 {[%clk 00:00:33]} {[%emt
00:00:02]} 43. Be8 {[%clk 00:03:01]} {[%emt 00:00:02]} g5 {[%clk 00:00:28]}
{[%emt 00:00:11]} 44. Ke6 {[%clk 00:02:57]} {[%emt 00:00:12]} c4 {[%clk
00:00:31]} {[%emt 00:00:03]} 45. Kf6 {[%clk 00:02:55]} {[%emt 00:00:04]} Bxf2
{[%emt 00:00:05]} 46. Kg6 {[%clk 00:02:57]} Be3 {[%clk 00:00:35]} {[%emt
00:00:07]} 47. Kxh6 {[%clk 00:02:46]} {[%emt 00:00:15]} Kd6 {[%clk 00:00:34]}
{[%emt 00:00:06]} 48. Kg6 {[%clk 00:02:45]} {[%emt 00:00:05]} Ke5 {[%clk
00:00:34]} {[%emt 00:00:06]} 49. Bc6 {[%clk 00:02:32]} {[%emt 00:00:17]} Bf4
{[%clk 00:00:35]} {[%emt 00:00:05]} 50. Kf7 {[%clk 00:02:16]} {[%emt 00:00:20]}
Bc1 {[%clk 00:00:39]} {[%emt 00:00:03]} 51. b3 {[%clk 00:02:12]} {[%emt
00:00:09]} cxb3 {[%clk 00:00:33]} {[%emt 00:00:11]} 52. axb3 {[%clk 00:02:16]}
{[%emt 00:00:01]} a5 {[%clk 00:00:37]} {[%emt 00:00:01]} 53. c4 {[%clk
00:02:15]} {[%emt 00:00:06]} Be3 {[%clk 00:00:41]} 54. g3 {[%clk 00:02:13]}
{[%emt 00:00:07]} Bf2 {[%clk 00:00:44]} {[%emt 00:00:01]} 55. g4 {[%clk
00:02:02]} {[%emt 00:00:17]} Be3 {[%clk 00:00:48]} 56. Ke7 {[%clk 00:02:01]}
{[%emt 00:00:03]} Bf2 {[%clk 00:00:49]} {[%emt 00:00:06]} 57. Kd7 {[%clk
00:01:58]} {[%emt 00:00:08]} Bb6 {[%clk 00:00:52]} {[%emt 00:00:02]} 58. Bg2
{[%clk 00:01:55]} {[%emt 00:00:08]} Bc5 {[%clk 00:00:56]} {[%emt 00:00:02]} 59.
Kc6 {[%clk 00:01:58]} {[%emt 00:00:02]} Bb4 {[%clk 00:01:00]} {[%emt 00:00:01]}
60. Kb5 {[%clk 00:02:01]} {[%emt 00:00:01]} Kf4 {[%clk 00:00:59]} {[%emt
00:00:06]} 61. c5 {[%clk 00:01:56]} {[%emt 00:00:10]} Ke5 {[%clk 00:01:00]}
{[%emt 00:00:03]} 62. c6 {[%clk 00:01:59]} {[%emt 00:00:02]} Kd6 {[%clk
00:01:05]} {[%emt 00:00:01]} 63. Kb6 {[%clk 00:01:56]} {[%emt 00:00:07]} Bc3
{[%clk 00:00:09]} {[%emt 00:01:01]} 64. c7 {[%clk 00:01:40]} {[%emt 00:00:22]}
Bd4+ {[%clk 00:00:13]} 65. Kb7 {[%clk 00:01:39]} {[%emt 00:00:03]} a4 {[%clk
00:00:10]} {[%emt 00:00:10]} 66. bxa4 {[%clk 00:01:40]} {[%emt 00:00:04]} Bc5
{[%clk 00:00:14]} 67. c8=Q {[%clk 00:01:32]} {[%emt 00:00:06]} 1-0

[Event "MCR rapid mládeže 2023 U16"]
[Site "Harachov, Czech Republic"]
[Date "2023.09.10"]
[Round "8.11"]
[White "Kammova, Katerina"]
[Black "Buchtova, Viktorie"]
[Result "0-1"]
[TimeControl "20min+5s/move"]
[WhiteElo "1393"]
[BlackElo "1556"]

1. e4 {[%clk 00:20:06]} {[%emt 00:00:05]} c5 {[%clk 00:20:12]} {[%emt
00:00:03]} 2. Be2 {[%clk 00:20:09]} {[%emt 00:00:02]} g6 {[%clk 00:20:10]}
{[%emt 00:00:08]} 3. f4 {[%clk 00:20:12]} {[%emt 00:00:01]} Bg7 {[%clk
00:20:13]} {[%emt 00:00:02]} 4. Nf3 {[%clk 00:20:12]} {[%emt 00:00:05]} d6
{[%clk 00:20:15]} {[%emt 00:00:04]} 5. d3 {[%clk 00:20:15]} {[%emt 00:00:02]}
Nc6 {[%clk 00:20:17]} {[%emt 00:00:03]} 6. c3 {[%clk 00:20:17]} {[%emt
00:00:02]} Qc7 {[%clk 00:17:12]} {[%emt 00:03:10]} 7. O-O {[%clk 00:20:12]}
{[%emt 00:00:10]} Nf6 {[%clk 00:17:08]} {[%emt 00:00:11]} 8. a4 {[%clk
00:20:04]} {[%emt 00:00:12]} O-O {[%clk 00:16:44]} {[%emt 00:00:28]} 9. Na3
{[%clk 00:20:04]} {[%emt 00:00:05]} a6 {[%clk 00:16:45]} {[%emt 00:00:05]} 10.
Kh1 {[%clk 00:20:03]} {[%emt 00:00:06]} Bd7 {[%clk 00:15:12]} {[%emt 00:01:38]}
11. Be3 {[%clk 00:19:44]} {[%emt 00:00:23]} Rab8 {[%clk 00:14:16]} {[%emt
00:01:01]} 12. Qd2 {[%clk 00:16:53]} {[%emt 00:02:56]} b5 {[%clk 00:13:54]}
{[%emt 00:00:28]} 13. Nc2 {[%clk 00:12:31]} {[%emt 00:04:27]} bxa4 {[%clk
00:12:06]} {[%emt 00:01:54]} 14. Rxa4 {[%clk 00:12:20]} {[%emt 00:00:16]} Rxb2
{[%clk 00:12:02]} {[%emt 00:00:08]} 15. Rxa6 {[%clk 00:12:12]} {[%emt
00:00:14]} Ng4 {[%clk 00:07:43]} {[%emt 00:04:24]} 16. Bg1 {[%clk 00:10:51]}
{[%emt 00:01:26]} Na5 {[%clk 00:06:42]} {[%emt 00:01:06]} 17. d4 {[%clk
00:09:09]} {[%emt 00:01:46]} c4 {[%clk 00:06:06]} {[%emt 00:00:42]} 18. Qc1
{[%clk 00:08:40]} {[%emt 00:00:34]} Rfb8 {[%clk 00:05:40]} {[%emt 00:00:31]} 19.
Nd2 {[%clk 00:07:01]} {[%emt 00:01:44]} R2b7 {[%clk 00:02:45]} {[%emt
00:02:59]} 20. Qa3 {[%clk 00:05:41]} {[%emt 00:01:26]} Nb3 {[%emt 00:00:13]} 21.
Nxb3 {[%clk 00:03:42]} {[%emt 00:02:02]} cxb3 {[%clk 00:02:42]} {[%emt
00:00:02]} 22. Nb4 {[%clk 00:03:13]} {[%emt 00:00:34]} Qxc3 {[%clk 00:02:41]}
{[%emt 00:00:06]} 23. Nd5 {[%clk 00:02:53]} {[%emt 00:00:25]} Qc2 {[%clk
00:01:46]} {[%emt 00:00:58]} 24. Bxg4 {[%clk 00:01:56]} {[%emt 00:01:05]} Bxg4
{[%clk 00:01:47]} {[%emt 00:00:04]} 25. Ne3 {[%clk 00:01:59]} {[%emt 00:00:02]}
Qe2 {[%clk 00:01:29]} {[%emt 00:00:20]} 26. Nxg4 {[%clk 00:00:56]} {[%emt
00:01:11]} Qxf1 {[%clk 00:01:22]} {[%emt 00:00:13]} 27. Ra8 {[%clk 00:00:49]}
{[%emt 00:00:12]} Bxd4 {[%clk 00:01:03]} {[%emt 00:00:23]} 28. Rxb8+ {[%clk
00:00:40]} {[%emt 00:00:15]} Rxb8 {[%clk 00:01:06]} {[%emt 00:00:01]} 0-1